Cogmind - Beta 11.1 @@@ ROGUE MODE // 2022.10.20 @ 14:11:52 Player: ILikeMonsters1890 Result: Destroyed by Y-72 Warden with Railgun Performance ------------- Evolutions (7) 3500 Regions Visited (10) 2000 Robots Destroyed (134) 670 Value Destroyed (2981) 2981 Prototype IDs (8) 160 Alien Tech Used (0) 0 Bonus (295) 295 TOTAL SCORE: 9606 Bonus ------- High Alert Combat Kills 295 Cogmind --------- Core Integrity 0/1300 Matter 221/300 Energy 84/100 System Corruption 0% Temperature Cool (2) Movement Hovering (60) Location -3/Research Parts ------- > --- POWER (2) -------- (None) > --- PROPULSION (6) --- Antigrav System Antigrav System > --- UTILITY (7) ------ Improved Melee Analysis Suite > --- WEAPON (6) ------- (None) > --- INVENTORY (5) ---- Cloaking Device Peak State ------------ > --- POWER ------------ Micro Nuclear Core Micro Fission Core > --- PROPULSION ------- Improved Hover Unit Improved Hover Unit Improved Hover Unit Airjet Gravmag System Gravmag System > --- UTILITY ---------- Advanced Sensor Array Improved Melee Analysis Suite Actuator Array Improved Weapon Shielding Improved Light Armor Plating Improved Thermal Shield > --- WEAPON ----------- Heavy Mace Power Maul Power Maul Power Maul Lance Lance > --- INVENTORY -------- Compact Wheel Long-range Missile Launcher [Rating: 78] Favorites ----------- Power Ion Engine Engine Ion Engine Power Core Micro Nuclear Core Propulsion Improved Flight Unit Wheel Wheel Hover Unit Improved Hover Unit Flight Unit Improved Flight Unit Utility Small Storage Unit Device Actuator Array Storage Small Storage Unit Processor Improved Melee Analysis Suite Protection Light Armor Plating Weapon Maul Ballistic Gun Light Assault Rifle Ballistic Cannon Improved Light Cannon Launcher Rocket Launcher Impact Weapon Maul Piercing Weapon Lance Build | -11 -10 -10 -9 -9 -8 -7 -6 -5 -4 -3 ------- Run | Scr Mat Min Mat Sto Mat Fac Fac Fac Fac Res Slots Evolved 14 | . . . 2 . 2 2 2 2 2 2 Power 1 | . . . . . . . . . 1 . Propulsion 4 | . . . 1 . 2 1 . . . . Utility 5 | . . . 1 . . 1 1 1 . 1 Weapon 4 | . . . . . . . 1 1 1 1 Parts Attached 130 | 7 9 2 3 20 32 25 12 5 2 13 Power 18 | 1 2 1 . 4 5 1 1 1 1 1 Engine 12 | 1 2 1 . 4 4 . . . . . Core 6 | . . . . . 1 1 1 1 1 1 Reactor . | . . . . . . . . . . . Propulsion 53 | 2 3 1 1 5 14 16 5 . . 6 Treads . | . . . . . . . . . . . Leg . | . . . . . . . . . . . Wheel 19 | 2 3 1 1 1 2 8 . . . 1 Hover 16 | . . . . . 4 5 5 . . 2 Flight 18 | . . . . 4 8 3 . . . 3 Utility 27 | 2 2 . 2 3 4 6 3 3 . 2 Device 11 | 1 1 . . 2 1 2 1 2 . 1 Storage 2 | 1 . . . . . 1 . . . . Processor 2 | . . . . . . 1 1 . . . Hackware . | . . . . . . . . . . . Protection 12 | . 1 . 2 1 3 2 1 1 . 1 Artifact . | . . . . . . . . . . . Weapon 32 | 2 2 . . 8 9 2 3 1 1 4 Energy Gun . | . . . . . . . . . . . Energy Cannon . | . . . . . . . . . . . Ballistic Gun 3 | 2 1 . . . . . . . . . Ballistic Cannon 1 | . . . . . 1 . . . . . Launcher 9 | . . . . 4 2 1 . . . 2 Special Weapon . | . . . . . . . . . . . Impact Weapon 17 | . 1 . . 4 6 1 3 1 . 1 Slashing Weapon . | . . . . . . . . . . . Piercing Weapon 2 | . . . . . . . . . 1 1 Special Melee Weapon . | . . . . . . . . . . . Unidentified Prototypes 3 | . . . . 1 . . 1 . . 1 Corrupted Parts 1 | . . . . . . 1 . . . . System Corruption 6 | . . . . . . 6 . . . . Parts Lost 60 | . 3 1 . 4 14 9 3 . . 26 Power 7 | . . . . 2 2 1 . . . 2 Propulsion 28 | . 2 1 . . 9 6 . . . 10 Utility 16 | . 1 . . 1 3 2 3 . . 6 Weapon 9 | . . . . 1 . . . . . 8 Highest Loss Streak 20 | . 1 1 . 3 8 5 2 . . 20 To Critical Strikes 1 | . . . . . . . . . . 1 Average Slot Usage (%) 88 | . 98 99 100 80 87 89 97 98 100 39 Engine 5 | . 14 14 11 10 8 . . . . . Core 2 | . . . . . . 6 5 5 10 3 Wheel 11 | . 27 27 33 3 4 12 7 . . . Hover 7 | . . . . . 6 2 31 35 31 5 Flight 13 | . . . . 29 24 20 . . . 2 Device 6 | . 9 . . 1 3 8 6 21 15 4 Storage 7 | . 14 14 11 11 9 6 5 . . . Processor 3 | . . . . . . 6 11 5 5 4 Protection 8 | . 4 14 22 12 12 5 5 5 10 4 Ballistic Gun 3 | . 15 14 11 1 . . . . . . Impact Weapon 14 | . 12 14 11 9 16 14 20 23 21 8 Naked Turns . | . . . . . . . . . . . Heaviest Build 47 | 13 19 19 22 22 24 25 28 30 39 47 Greatest Support 88 | 20 20 20 30 30 24 88 47 47 47 47 Greatest Overweight (x) 2 | . . 1 . . 2 2 1 . . 2 Average Overweight (x) . | . . . . . . . . . . . Largest Inventory Capacity 8 | 8 8 8 8 8 8 8 8 5 5 5 Average Capacity 7 | 7 8 8 8 8 8 7 7 5 5 5 Most Carried 8 | 8 8 8 7 8 8 8 6 5 4 3 Average Carried 6 | 4 7 7 6 7 6 7 4 4 3 1 Final Capacity 8 | 8 8 8 8 8 8 8 5 5 5 5 Final Carried 8 | 8 8 8 7 8 8 5 5 5 3 1 Class Distribution -------------------- 65% | Mutant 29% | Scavenger-Mutant 4% | Sprinter Dominant Class ---------------- Mutant | -10/Materials Mutant | -10/Mines Mutant | -9/Materials Mutant | -9/Storage Mutant | -8/Materials Mutant | -7/Factory Scavenger-Mutant | -6/Factory Scavenger-Mutant | -5/Factory Scavenger-Mutant | -4/Factory Mutant | -3/Research Resources | -11 -10 -10 -9 -9 -8 -7 -6 -5 -4 -3 ----------- Run | Scr Mat Min Mat Sto Mat Fac Fac Fac Fac Res Matter Collected 1683 | 316 79 20 30 400 293 315 82 . . 148 Remotely . | . . . . . . . . . . . Salvage Created 4505 | 195 236 215 266 801 940 862 731 . . 259 Parts 151 | 18 4 6 6 29 29 29 21 . . 9 Haulers Intercepted 3 | . . . . 2 . 1 . . . . Recyclers Shooed 7 | . . 1 3 2 1 . . . . . Parts Field Recycled . | . . . . . . . . . . . Retrieved Matter . | . . . . . . . . . . . Parts Self-Destructed . | . . . . . . . . . . . Prevented . | . . . . . . . . . . . Kills | -11 -10 -10 -9 -9 -8 -7 -6 -5 -4 -3 ------- Run | Scr Mat Min Mat Sto Mat Fac Fac Fac Fac Res Combat Hostiles Destroyed 65 | . 5 3 5 19 13 7 7 . . 6 Melee 16 | . 2 1 2 . 3 3 5 . . . AOE 23 | . . . . 13 3 2 . . . 5 Classes Destroyed 13 | 3 4 . 1 2 1 2 . . . . Worker 22 | 2 4 4 1 3 2 6 . . . . Builder 5 | . 1 1 . . 2 . 1 . . . Tunneler 8 | 5 1 1 . . . . 1 . . . Hauler 3 | . . . . 2 . 1 . . . . Recycler 19 | 1 . 1 2 3 3 5 3 . . 1 Operator 5 | . . . . 1 2 2 . . . . Watcher 7 | . 1 . . 1 4 1 . . . . Swarmer 24 | . 3 3 3 7 2 . . . . 6 Grunt 21 | . 2 . 1 5 4 4 5 . . . Duelist 2 | . . . . . . 1 1 . . . Sentry 14 | . . . 1 7 5 1 . . . . Hunter 2 | . . . . . 2 . . . . . Programmer 2 | . . . . . . 1 1 . . . Best Kill Streak 10 | 4 6 4 5 10 5 3 9 . . 3 Combat Bots Only 6 | . 3 2 3 6 4 2 3 . . 3 Max Kills in Single Turn 4 | 1 1 1 1 4 3 1 1 . . 2 Gunslinging . | . . . . . . . . . . . Exploded 4 | . . . . 4 2 1 . . . 2 Melee 1 | . 1 1 1 . 1 1 1 . . . Uniques/NPCs Destroyed . | . . . . . . . . . . . Combat | -11 -10 -10 -9 -9 -8 -7 -6 -5 -4 -3 -------- Run | Scr Mat Min Mat Sto Mat Fac Fac Fac Fac Res Damage Taken 7050 | . 260 162 225 705 1146 947 575 . . 3030 Core 2169 | . 41 10 . 281 225 216 85 . . 1311 Absorbed by Shields . | . . . . . . . . . . . Redirected to Shielding 373 | . . . . 23 29 18 86 . . 217 Regen/Repaired (Parts) 226 | . 29 . . . . 103 94 . . . Core Remaining (%) 78 | 100 . 79 . 29 59 69 90 100 100 . Volleys Fired 70 | 23 4 . . 20 7 9 . . . 7 Largest 2 | 2 1 . . 1 1 1 . . . 1 Hottest 46 | 40 20 . . 33 33 30 . . . 46 Shots Fired 93 | 46 4 . . 20 7 9 . . . 7 Gun 50 | 46 4 . . . . . . . . . Cannon . | . . . . . . . . . . . Launcher 43 | . . . . 20 7 9 . . . 7 Special . | . . . . . . . . . . . Kinetic 50 | 46 4 . . . . . . . . . Thermal . | . . . . . . . . . . . Explosive 36 | . . . . 20 . 9 . . . 7 Electromagnetic 7 | . . . . . 7 . . . . . Robot Hit Streak 9 | 9 1 . . 3 2 6 . . . 8 Robot Miss Streak 3 | 3 1 . . 2 3 3 . . . 1 Penetration Max . | . . . . . . . . . . . Secondary Targets . | . . . . . . . . . . . Shots Hit Robots 221 | 28 19 12 16 35 37 36 23 . . 15 Core Hits 96 | 15 1 1 1 26 11 18 7 . . 16 Critical Kills 2 | . . . 1 . 1 . . . . . Critical Parts Destroyed 52 | . 7 8 6 9 11 6 4 . . 1 Critical Strikes 54 | . 7 8 7 9 12 6 4 . . 1 Smash 54 | . 7 8 7 9 12 6 4 . . 1 Melee Attacks 255 | . 27 20 22 32 58 44 39 1 . 12 Impact 254 | . 27 20 22 32 58 44 39 1 . 11 Slashing . | . . . . . . . . . . . Piercing 1 | . . . . . . . . . . 1 Sneak Attacks 45 | . 4 5 4 6 8 11 6 . . 1 Combat Hostiles 1 | . . . . . . . 1 . . . Follow-up Attacks 11 | . . . . . 5 2 3 . . 1 Damage Inflicted 11750 | 223 801 626 684 2183 1890 2505 1451 . . 1387 Guns 240 | 223 17 . . . . . . . . . Cannons . | . . . . . . . . . . . Explosions 2873 | . . . . 1093 294 539 . . . 947 Melee 8637 | . 784 626 684 1090 1596 1966 1451 . . 440 Ramming . | . . . . . . . . . . . Kinetic 240 | 223 17 . . . . . . . . . Thermal 115 | . . . . . 115 . . . . . Explosive 2579 | . . . . 1093 . 539 . . . 947 Electromagnetic 179 | . . . . . 179 . . . . . Impact 8637 | . 784 626 684 1090 1596 1966 1451 . . 440 Slashing . | . . . . . . . . . . . Piercing . | . . . . . . . . . . . Highest Corruption 8 | . 1 1 . . . 7 8 . . . Average Corruption 1 | . 1 1 . . . 1 3 . . . Corruption Purged . | . . . . . . . . . . . Corruption Blocked . | . . . . . . . . . . . Effects 10 | . 4 . . . . 3 3 . . . Message Errors 3 | . 3 . . . . . . . . . Matter Fused 1 | . . . . . . . 1 . . . Heat Flow Errors 2 | . . . . . . . 2 . . . Energy Discharges 1 | . 1 . . . . . . . . . Parts Rejected 1 | . . . . . . 1 . . . . Data Loss (minor) 2 | . . . . . . 2 . . . . Overload Shots . | . . . . . . . . . . . Overflow Damage 4126 | . 517 447 332 576 762 944 364 . . 184 Projectiles 20 | . 7 13 . . . . . . . . Explosions 123 | . . . . 7 4 38 . . . 74 Melee 3983 | . 510 434 332 569 758 906 364 . . 110 Knockbacks 46 | . 6 5 2 1 10 8 9 . . 5 Impact 42 | . 5 4 2 1 10 7 8 . . 5 Kinetic . | . . . . . . . . . . . Secondary 4 | . 1 1 . . . 1 1 . . . Self-Inflicted Damage 814 | . . . . 123 63 322 . . . 306 Shots 21 | . . . . 4 3 8 . . . 6 Rammed . | . . . . . . . . . . . Targets Rammed . | . . . . . . . . . . . Kicked . | . . . . . . . . . . . Crushed . | . . . . . . . . . . . Highest Temperature 270 | . . . . 12 9 8 270 . . 6 Average Temperature 73 | . . . . 5 4 8 143 . . 4 Received Heat Transfer 1188 | . 42 . 84 147 342 213 126 . . 234 Siege Activations . | . . . . . . . . . . . Robots Corrupted 3 | . . . . . 3 . . . . . Combat Hostiles 2 | . . . . . 2 . . . . . Parts Fried 80 | . 10 7 1 13 23 15 10 . . 1 Impact Corruptions 144 | . 21 20 14 20 33 23 10 . . 3 Robots Melted . | . . . . . . . . . . . Combat Hostiles . | . . . . . . . . . . . Parts Melted . | . . . . . . . . . . . Heat Transferred 300 | . . . . . 300 . . . . . Parts Sabotaged . | . . . . . . . . . . . Parts Stolen . | . . . . . . . . . . . Parts Stripped . | . . . . . . . . . . . Power Chain Reactions 3 | . . . . . 3 . . . . . Missiles Intercepted . | . . . . . . . . . . . Alert | -11 -10 -10 -9 -9 -8 -7 -6 -5 -4 -3 ------- Run | Scr Mat Min Mat Sto Mat Fac Fac Fac Fac Res Peak Influence 992 | 40 183 180 249 992 720 334 342 183 101 166 Initial 340 | . 26 70 70 104 340 210 114 162 89 52 Average 258 | 15 112 140 160 466 552 217 199 182 95 49 Maximum Alert Level 3 | . . . 1 3 3 1 1 . . . Low Security (%) 53 | 100 100 100 67 33 . 29 61 100 100 100 Level 1 26 | . . . 32 24 9 70 38 . . . Level 2 11 | . . . . 10 63 . . . . . Level 3 7 | . . . . 30 26 . . . . . Level 4 . | . . . . . . . . . . . Level 5 . | . . . . . . . . . . . High Security . | . . . . . . . . . . . Max Security . | . . . . . . . . . . . Squads Dispatched 15 | . . . 1 1 2 5 1 2 . 3 Investigation 6 | . . . . 1 1 2 . 1 . 1 Extermination 2 | . . . . . . 2 . . . . Reinforcement 7 | . . . 1 . 1 1 1 1 . 2 Assault . | . . . . . . . . . . . Garrison . | . . . . . . . . . . . Intercept . | . . . . . . . . . . . Searches Triggered . | . . . . . . . . . . . Construction Impeded 1 | . . . . . . . . . . 1 Haulers Reinforced 1 | . . . . . . 1 . . . . Active Scanning Responses . | . . . . . . . . . . . Cargo Convoy Interrupts . | . . . . . . . . . . . Stealth | -11 -10 -10 -9 -9 -8 -7 -6 -5 -4 -3 --------- Run | Scr Mat Min Mat Sto Mat Fac Fac Fac Fac Res Distress Signals 5 | . . . . 2 1 1 . . . 1 Communications Jammed . | . . . . . . . . . . . Distress Signals . | . . . . . . . . . . . Times Spotted 111 | . 6 4 6 24 23 14 9 1 2 22 Peak Tracking Total 10 | . 3 3 3 9 6 5 2 1 5 10 Tactical Retreats 8 | . . 1 . . 2 1 1 . . 3 Traps | -11 -10 -10 -9 -9 -8 -7 -6 -5 -4 -3 ------- Run | Scr Mat Min Mat Sto Mat Fac Fac Fac Fac Res Traps Triggered 7 | . 1 . . 2 . . 2 . . 2 Indirectly . | . . . . . . . . . . . Trap Hack Attempts . | . . . . . . . . . . . Triggered . | . . . . . . . . . . . Disarmed . | . . . . . . . . . . . Reprogrammed . | . . . . . . . . . . . Reused . | . . . . . . . . . . . Traps Extracted . | . . . . . . . . . . . Installed 5 | . . 5 . . . . . . . . Triggered . | . . . . . . . . . . . Machines | -11 -10 -10 -9 -9 -8 -7 -6 -5 -4 -3 ---------- Run | Scr Mat Min Mat Sto Mat Fac Fac Fac Fac Res Machines Disabled 15 | . . . . 7 1 5 . . . 2 Max in Single Turn 3 | . . . . 2 1 3 . . . 1 Garrison Access 2 | . . . . 1 1 . . . . . Machines Sabotaged . | . . . . . . . . . . . Garrisons Compromised . | . . . . . . . . . . . Overloaded Fab Kills . | . . . . . . . . . . . Hacking | -11 -10 -10 -9 -9 -8 -7 -6 -5 -4 -3 --------- Run | Scr Mat Min Mat Sto Mat Fac Fac Fac Fac Res Machines Accessed 30 | . 2 . 1 6 5 7 3 4 2 . Terminals 17 | . . . 1 5 3 4 1 1 2 . Fabricators 1 | . . . . . . 1 . . . . Repair Stations 5 | . 1 . . . 1 2 1 . . . Recycling Units 2 | . 1 . . . . . . 1 . . Scanalyzers 2 | . . . . . . . 1 1 . . Garrison Access 3 | . . . . 1 1 . . 1 . . Total Hacks 87 | . 4 . 3 17 16 20 9 14 4 . Successful 41 | . 3 . 1 8 6 8 6 7 2 . Failed 46 | . 1 . 2 9 10 12 3 7 2 . Catastrophic 8 | . . . . . 1 5 1 1 . . Database Lockouts . | . . . . . . . . . . . Manual 10 | . . . . 2 4 2 . 1 1 . Terminals 56 | . . . 3 15 12 13 3 6 4 . Fabricators 2 | . . . . . . 2 . . . . Repair Stations 13 | . 2 . . . 1 5 5 . . . Recycling Units 3 | . 2 . . . . . . 1 . . Scanalyzers 5 | . . . . . . . 1 4 . . Garrison Access 8 | . . . . 2 3 . . 3 . . Terminal Hacks 24 | . . . 1 7 4 5 2 3 2 . Record 3 | . . . . . . . . 2 1 . Part Schematic 1 | . . . . 1 . . . . . . Robot Analysis 3 | . . . . 2 . 1 . . . . Prototype ID Bank 2 | . . . . . . 1 . 1 . . Open DSF 1 | . . . . . . . . . 1 . Branch Access Points 2 | . . . . 1 . 1 . . . . Emergency Access Points 3 | . . . 1 1 . 1 . . . . Repair Station Index 1 | . . . . . 1 . . . . . Alert Level 1 | . . . . . 1 . . . . . Unreport Threat 2 | . . . . 1 1 . . . . . Locate Traps 1 | . . . . . . . 1 . . . Dispatch Records 1 | . . . . 1 . . . . . . Recall Investigation 1 | . . . . . . 1 . . . . Zone Layout 2 | . . . . . 1 . 1 . . . Fabricator Hacks . | . . . . . . . . . . . Repair Station Hacks 10 | . 2 . . . 1 3 4 . . . Scan Component 4 | . 1 . . . . 1 2 . . . Repair 4 | . 1 . . . . 1 2 . . . Refit 2 | . . . . . 1 1 . . . . Recycling Unit Hacks 1 | . 1 . . . . . . . . . Retrieve Components 1 | . 1 . . . . . . . . . Scanalyzer 4 | . . . . . . . . 4 . . Insert Component 2 | . . . . . . . . 2 . . Analyze 2 | . . . . . . . . 2 . . Garrison Access Hacks 2 | . . . . 1 1 . . . . . Seal Access 2 | . . . . 1 1 . . . . . Unauthorized Hacks . | . . . . . . . . . . . Terminals . | . . . . . . . . . . . Fabricators . | . . . . . . . . . . . Repair Stations . | . . . . . . . . . . . Recycling Units . | . . . . . . . . . . . Scanalyzers . | . . . . . . . . . . . Garrison Access . | . . . . . . . . . . . Data Cores Recovered 2 | . . . . 1 . 1 . . . . Used 1 | . . . . 1 . . . . . . Hacking Detections 26 | . 2 . 1 6 4 6 2 4 1 . Full Trace Events 4 | . . . . . 1 2 . 1 . . Feedback Events . | . . . . . . . . . . . Feedback Blocked . | . . . . . . . . . . . Robot Schematics Acquired . | . . . . . . . . . . . Robots Built . | . . . . . . . . . . . Authchips . | . . . . . . . . . . . Time . | . . . . . . . . . . . Total Robot Build Rating . | . . . . . . . . . . . Part Schematics Acquired 3 | . . . . 1 . . . 2 . . Parts Built . | . . . . . . . . . . . Authchips . | . . . . . . . . . . . Time . | . . . . . . . . . . . Total Part Build Rating . | . . . . . . . . . . . Parts Repaired 4 | . 1 . . . . 1 2 . . . Time 128 | . 26 . . . . 26 76 . . . Parts Recycled . | . . . . . . . . . . . Recycled Matter . | . . . . . . . . . . . Retrieved Matter . | . . . . . . . . . . . Retrieved Components 2 | . 2 . . . . . . . . . Parts Scanalyzed 2 | . . . . . . . . 2 . . Part Schematics Acquired 2 | . . . . . . . . 2 . . Parts Damaged . | . . . . . . . . . . . Bothacking | -11 -10 -10 -9 -9 -8 -7 -6 -5 -4 -3 ------------ Run | Scr Mat Min Mat Sto Mat Fac Fac Fac Fac Res Used RIF Installer . | . . . . . . . . . . . Robots Hacked . | . . . . . . . . . . . Non-combat . | . . . . . . . . . . . Combat . | . . . . . . . . . . . Robot Hacks Applied . | . . . . . . . . . . . Relay Couplers Released . | . . . . . . . . . . . Fabnet Peak Effective % . | . . . . . . . . . . . Robots Rewired . | . . . . . . . . . . . Allies Hacked . | . . . . . . . . . . . Hacks Repelled . | . . . . . . . . . . . Allies | -11 -10 -10 -9 -9 -8 -7 -6 -5 -4 -3 -------- Run | Scr Mat Min Mat Sto Mat Fac Fac Fac Fac Res Total Allies 3 | . . . . . . . . . . 3 Largest Group 3 | . . . . . . . . . . 3 Highest-Rated Group 138 | . . . . . . . . . . 138 Highest-Rated Ally 46 | . . . . . . . . . . 46 Total Orders . | . . . . . . . . . . . Ally Attacks 13 | . . . . . . . . . . 13 Total Damage 254 | . . . . . . . . . . 254 Kills 1 | . . . . . . . . . . 1 Allies Corrupted . | . . . . . . . . . . . Allies Melted . | . . . . . . . . . . . Intel | -11 -10 -10 -9 -9 -8 -7 -6 -5 -4 -3 ------- Run | Scr Mat Min Mat Sto Mat Fac Fac Fac Fac Res Robot Analysis Total 3 | . . . . 2 . 1 . . . . Derelict Logs Recovered 1 | . . 1 . . . . . . . . Drone Launches . | . . . . . . . . . . . Drone Recoveries . | . . . . . . . . . . . Exploration | -11 -10 -10 -9 -9 -8 -7 -6 -5 -4 -3 ------------- Run | Scr Mat Min Mat Sto Mat Fac Fac Fac Fac Res Turns Passed 3779 | 221 295 273 191 430 623 915 349 237 21 224 Spaces Moved 3311 | 176 183 239 131 526 471 679 249 321 47 289 Core 14 | 13 . . . . . . . . . 1 Treads . | . . . . . . . . . . . Legs . | . . . . . . . . . . . Wheels 1385 | 163 183 239 131 44 175 445 . . . 5 Hover 723 | . . . . . 28 22 249 321 47 56 Flight 1189 | . . . . 482 268 212 . . . 227 Fastest Speed 25 | 50 80 80 80 34 25 58 40 40 40 40 Average Speed 67 | 77 80 80 80 37 73 100 48 40 40 50 Slowest Speed 192 | 80 80 95 80 80 180 192 112 44 40 130 Overloaded Moves . | . . . . . . . . . . . Propulsion Burnouts . | . . . . . . . . . . . Robots Hopped . | . . . . . . . . . . . Cave-ins Triggered 1 | . . . . . . . 1 . . . Exploration Rate (%) 26 | 6 42 67 11 76 39 19 9 9 1 10 Regions Visited 10 Branch Regions 2 Pre-discovered Areas 1 | . . 1 . . . . . . . . Known Exits Taken . | . . . . . . . . . . . Unknown Exits Taken 10 | 1 1 1 1 1 1 1 1 1 1 . Scrap Searched 1 | . . 1 . . . . . . . . Spaces Dug 13 | . . . . 3 7 . 3 . . . Terrain Destroyed 206 | . . . . 108 13 49 3 . . 33 Melee 13 | . . . . 3 7 . 3 . . . Projectile . | . . . . . . . . . . . AOE 193 | . . . . 105 6 49 . . . 33 Terrain Rammed . | . . . . . . . . . . . Walls Destroyed . | . . . . . . . . . . . Machines Disabled . | . . . . . . . . . . . Actions | -11 -10 -10 -9 -9 -8 -7 -6 -5 -4 -3 --------- Run | Scr Mat Min Mat Sto Mat Fac Fac Fac Fac Res Total 4358 | 224 277 283 172 677 640 852 417 428 48 340 Wait 386 | . 35 7 14 18 50 53 112 89 . 8 Move 3301 | 175 182 238 130 525 470 678 248 320 46 289 Hop . | . . . . . . . . . . . Pick Up 150 | 17 12 6 2 24 25 31 14 8 . 11 Fast Attach . | . . . . . . . . . . . Attach 84 | 7 4 1 2 6 16 22 9 3 2 12 Detach . | . . . . . . . . . . . Swap 46 | . 5 1 1 14 16 3 3 2 . 1 Drop 76 | 2 8 5 1 20 9 20 3 5 . 3 Fire 70 | 23 4 . . 20 7 9 . . . 7 Melee 222 | . 27 20 22 32 47 36 28 1 . 9 Ram . | . . . . . . . . . . . Kick . | . . . . . . . . . . . Crush . | . . . . . . . . . . . Escape Stasis 18 | . . . . 18 . . . . . . Rewire . | . . . . . . . . . . . Trap 5 | . . 5 . . . . . . . . Miscellaneous . | . . . . . . . . . . . Route ------- -11/Scrapyard -10/Materials -10/Mines -9/Materials -9/Storage (discovered 2 exits: *Mat / Rec) -8/Materials -7/Factory (discovered 3 exits: *Fac / Low x2) -6/Factory -5/Factory -4/Factory (discovered 2 exits: [*Res] / DSF) -3/Research History --------- Turn | Location | Event 7 | -11/Scrapyard | Discovered new exit (range 16) 222 | -11/Scrapyard | Entered Materials 318 | -10/Materials | Build established: Mutant 356 | -10/Materials | Repaired Wheel 419 | -10/Materials | Discovered new exit (range 11) 517 | -10/Materials | Entered Mines 524 | -10/Mines | Met a Derelict bent on vengeance 747 | -10/Mines | Found a hidden stash of uninstalled traps 780 | -10/Mines | Learned Materials stockpile data 785 | -10/Mines | Discovered new exit (range 5) 788 | -10/Mines | Learned location of Storage (-9) 790 | -10/Mines | Entered Materials 790 | -9/Materials | Evolved 2 slots: Propulsion x1, Utility x1 894 | -9/Materials | Discovered new exit (range 10) 981 | -9/Materials | Entered Storage 999 | -9/Storage | Identified exit to Recycling 1302 | -9/Storage | Core integrity fell below 50% 1347 | -9/Storage | Lost 3 parts (2p1w) 1404 | -9/Storage | Discovered new exit (range 16) 1411 | -9/Storage | Entered Materials 1411 | -8/Materials | Evolved 2 slots: Propulsion x2 1557 | -8/Materials | Lost 4 parts (1p1n2u) 1661 | -8/Materials | Lost 8 parts (1p6n1u) 1960 | -8/Materials | Discovered new exit (range 11) 2034 | -8/Materials | Entered Factory 2034 | -7/Factory | Evolved 2 slots: Propulsion x1, Utility x1 2291 | -7/Factory | Identified exit to Lower Caves 2568 | -7/Factory | Lost 3 parts (2n1u) 2595 | -7/Factory | Repaired Sml. Storage Unit 2738 | -7/Factory | Lost 5 parts (1p3n1u) 2917 | -7/Factory | Discovered new exit (range 13) 2949 | -7/Factory | Entered another Factory area 2949 | -6/Factory | Evolved 2 slots: Utility x1, Weapon x1 3034 | -6/Factory | Repaired Mni. Grenade Launcher 3079 | -6/Factory | Repaired Mic. Nuclear Core 3246 | -6/Factory | Crushed by falling debris 3295 | -6/Factory | Discovered new exit (range 6) 3298 | -6/Factory | Entered another Factory area 3298 | -5/Factory | Evolved 2 slots: Utility x1, Weapon x1 3385 | -5/Factory | Build established: Scavenger-Mutant 3529 | -5/Factory | Discovered new exit (range 15) 3535 | -5/Factory | Entered another Factory area 3535 | -4/Factory | Evolved 2 slots: Power x1, Weapon x1 3539 | -4/Factory | Identified exit to DSF 3544 | -4/Factory | Discovered new exit (range 6) 3556 | -4/Factory | Entered Research 3556 | -3/Research | Evolved 2 slots: Utility x1, Weapon x1 3645 | -3/Research | Core integrity fell below 50% 3678 | -3/Research | Lost 20 parts (2p7n5u6w) 3700 | -3/Research | Allied Derelicts emerged from ambush trap array 3758 | -3/Research | Core integrity fell below 20% 3780 | -3/Research | Destroyed by Y-72 Warden with Railgun Last Messages --------------- 03742_ W-44 Eye sends out distress signal. 03744_ Slug penetrates A3-KAQ(g). 03747_ Acquired 5 matter. 03748_ U-05 Engineer builds a Door. 03757_ Penetrated by Slug. 03759_ Acquired Antigrav System. 03766_ Acquired Smartbomb Launcher. Guided weapons can set waypoints, but cannot fire with other weapons in the same volley. 03770_ S-43 Plague destroyed. 03770_ Reaction Chamber disabled. 03770_ Destroyed Antigrav System. 03771_ Penetrated by Slug. 03772_ S-43 Plague destroyed. 03774_ Terminal disabled. 03774_ Imp. Propulsion Shielding destroyed. 03776_ Smartbomb Launcher destroyed. 03776_ Destroyed Smartbomb Launcher. 03779_ Xenon Bombardment Thruster destroyed. 03780_ Penetrated by Slug. Map ----- +----------------------------------------------------+ | #?# + #???????????????????????????? | | ######## %!# #???????????????????????????? | | # = # #???????????????????????????? | | # ####################?????????????????? | | # ?????????????????? | | # ????????????????? | | = # ????????????????? | | ######## ????????????????? | | ###????###########/### ###????????????????????? | | #?????????# # #??????????????????????? | | #?????????# # #??????????????????????? | | #?????????# # #??????????????????????? | | #?????????# """ # #??????????????????????? | | #?????????# """ # #??????????????????????? | | #?????????# """ # #??????????????????????? | | #?????????# # #??????????????????????? | | #?????????# # #??????????????????????? | | #?????????# # #??????????????????????? | | #?????????####+##+## #??????????????????????? | | #????????????# #??????????????????????? | | #????????????# #??????????????????????? | | ###????????????+ #?##???????????????????? | | ???????????????#+######; ### ###?????????????????? | | ???????????????# s ##????????????????? | | ???????????????# #????????????????? | | ???????????????# =% @ ##????????????????? | | ???????????????# #????????????????? | | ???????????????# Y ##????????????????? | | ???????????????# = [ #?????????????????? | | ???????????????# = w #?????????????????? | | ???????????????# ! #?????????????????? | | ???????????????# #?????????????????? | | ???????????????# #?????????????????? | | ???????????????#### # # #####?????????????????? | | | | | | | | | | | | | | | | | | | | | | | | | | | | | | | | | +----------------------------------------------------+ Best States ------------- Heat Dissipation 46 Energy Generation 25 Energy Capacity 265 Matter Stores 300 Matter Capacity 300 Sight Range 16 Robot Scan Range 16 Terrain Scan Density 10 Armor Coverage 300 Propulsion Shielding 66 Weapon Shielding 66 Evasion (%) 65 Melee Accuracy 6 Item Schematics ----------------- VSS Leg | -9/Storage | Hacked Hvy. Flail | -5/Factory | Scanalyzed Com. Wheel | -5/Factory | Scanalyzed Robot Schematics ------------------ None Fabricated ------------ Nothing Alien Tech Used ----------------- None Achievements -------------- None Challenges ------------ None Game ------ Seed SupersonicThunderBattery Manual? 0 Play Time 01:06:34 Cumulative 75.7 hours Start 2022.10.19 @ 13:38:37 End 2022.10.20 @ 14:11:52 Sessions 3 Manual Loads 0 Difficulty Rogue Special Mode None Game No. 83 Rogue 83 Adventurer 0 Explorer 0 Win Type - Total 0 Types 0/0/0/0/0/0/0/0/0 Lore% 55 Gallery% 45 Achievement% 38 Wizard Run 0 Options --------- ASCII 0 Keyboard 0 Movement Numpad Keybinds 0 Fullscreen 2 Font 18/SmallcapsGlow Map View 76x50 Tactical HUD 1 Map Filters NONE Filters NONE Steam 1 RUN: 8e02b55c-a4ce-4932-aad7-fe9089e5b49c